bitfinex-derivatives/quotes_ETHF0:USTF0_20241230
["timestamp","ask_amount","ask_price","bid_price","bid_amount"]
[1735522800281,0.29226,3429.0,3428.3,3.2078]
[1735522800485,3.2078,3429.2,3428.5,0.29229]
[1735522800783,3.2078,3429.2,3428.3,3.2078]
[1735522801181,0.29226,3429.0,3428.5,0.29229]
[1735522801385,3.2078,3429.2,3428.3,3.2078]
[1735522801589,0.29226,3428.9,3428.4,0.2923]
[1735522801779,3.2078,3429.2,3428.4,0.2923]
[1735522801982,0.29227,3428.8,3428.3,3.50011]
[1735522802189,1.322,3428.8,3428.4,0.2923]
[1735522802389,1.322,3428.8,3428.5,0.29229]
[1735522802689,1.322,3428.9,3428.3,3.2078]
[1735522803087,0.2923,3428.5,3428.3,3.2078]
[1735522803481,3.2078,3428.5,3427.7,3.2078]
[1735522803687,0.29232,3428.2,3427.7,3.2078]
[1735522803884,1.322,3428.1,3427.7,3.2078]
[1735522804084,3.2078,3427.8,3427.7,0.29236]
[1735522804279,3.2078,3428.2,3427.4,3.2078]
[1735522804479,3.2078,3428.2,3428.1,0.29233]
[1735522804678,4.10712725,3428.8,3428.4,0.2923]
[1735522804888,4.10712725,3428.8,3428.1,3.2078]
[1735522804889,3.2078,3428.5,3428.1,0.29233]
[1735522805281,3.2078,3428.5,3427.7,3.2078]
[1735522805491,3.2078,3428.5,3428.2,0.29232]
[1735522805685,3.2078,3428.5,3427.7,3.2078]
[1735522805884,3.2078,3428.5,3428.2,0.29232]
[1735522806586,3.2078,3428.5,3427.8,0.7309]
[1735522806791,3.2078,3428.5,3427.7,8.2078]
[1735522807087,3.2078,3428.5,3428.4,0.2923]
[1735522807392,3.2078,3428.5,3428.3,0.29231]
[1735522807791,3.2078,3428.5,3428.4,0.2923]
[1735522809588,3.2078,3428.9,3428.1,3.2078]
[1735522809789,3.2078,3428.9,3428.7,0.29228]
[1735522809989,3.2078,3428.9,3428.1,3.2078]
[1735522810182,3.2078,3428.9,3428.7,0.29227]
[1735522810388,2.3154,3429.3,3428.7,0.29227]
[1735522810389,0.2922,3429.7,3429.4,0.29222]
[1735522810686,0.2922,3429.7,3428.7,0.7307]
[1735522810687,1.2328,3429.9,3429.3,3.2078]
[1735522810890,1.2328,3429.9,3429.6,0.2922]
[1735522811192,0.2922,3429.7,3429.3,3.50002]
[1735522811385,0.29219,3429.8,3429.4,0.29222]
[1735522811786,0.29223,3429.3,3428.9,3.50006]
[1735522811990,1.322,3429.2,3428.9,3.50006]
[1735522812189,1.322,3429.2,3428.9,3.2078]
[1735522812385,1.322,3429.2,3429.0,0.29224]
[1735522812584,1.322,3429.2,3429.1,0.29224]
[1735522812784,2.84698,3429.9,3429.5,0.2922]
[1735522812991,1.52498,3429.9,3429.5,0.2922]
[1735522813188,1.2328,3429.9,3429.3,0.29222]
[1735522813489,2.5548,3429.9,3429.1,3.2078]
[1735522813693,2.84698,3429.9,3429.5,0.2922]
[1735522814097,2.5548,3429.9,3429.1,3.2078]
[1735522814587,2.5548,3429.9,3429.8,0.29218]
[1735522814793,2.5548,3429.9,3429.7,0.29219]
[1735522815593,3.2078,3430.0,3429.9,0.29218]
[1735522816398,1.1916,3430.6,3430.3,0.29214]
[1735522816594,1.1916,3430.6,3430.4,0.29213]
[1735522817292,4.5298,3430.7,3429.8,0.73047]
[1735522817485,3.2078,3430.7,3430.6,0.29212]
[1735522820498,0.29207,3431.2,3430.5,0.29212]
[1735522820803,0.2921,3430.9,3430.5,0.29212]
[1735522821003,0.2921,3430.8,3430.5,0.29212]
[1735522821199,8.2078,3431.3,3430.2,3.2078]
[1735522821404,3.2078,3430.7,3430.2,3.2078]
[1735522821599,3.49994,3430.3,3429.9,0.29217]
[1735522821904,2.5227,3430.6,3430.3,0.29214]
[1735522822096,1.301,3430.6,3430.5,0.29212]
[1735522823396,3.2078,3430.9,3430.6,0.29212]
[1735522823602,3.49989,3430.9,3430.3,3.2078]
[1735522823801,0.29213,3430.4,3430.3,3.2078]
[1735522824103,3.49993,3430.4,3429.6,3.2078]
[1735522824304,3.49993,3430.4,3429.9,0.29217]
[1735522824603,3.49993,3430.4,3430.0,0.29216]
[1735522824604,3.2078,3430.4,3430.0,0.29216]
[1735522824806,3.2078,3430.4,3429.6,3.2078]
[1735522825102,0.29214,3430.3,3429.6,3.5]
[1735522825302,0.29216,3430.2,3429.7,0.29219]
[1735522825696,2.67364,3430.3,3429.9,0.29217]
[1735522825899,2.67364,3430.3,3429.6,3.2078]
[1735522826106,2.3815,3430.3,3429.6,3.2078]
[1735522826296,2.3815,3430.3,3429.7,0.29219]
[1735522826497,3.2078,3430.0,3429.7,0.29219]
[1735522826901,3.2078,3430.0,3429.2,3.2078]
[1735522827104,3.2078,3430.0,3429.9,0.29218]
[1735522827302,2.3815,3430.3,3430.0,0.29216]
[1735522827498,4.5088,3430.5,3430.3,0.29214]
[1735522827804,4.5088,3430.5,3430.4,0.29213]
[1735522827805,3.2078,3430.5,3430.4,0.29213]
[1735522829204,3.2078,3431.0,3430.2,3.2078]
[1735522829512,3.2078,3431.0,3430.2,3.93817]
[1735522829700,3.2078,3431.0,3430.2,3.2078]
[1735522829905,3.2078,3431.0,3430.3,0.29214]
[1735522830204,0.29211,3430.7,3430.4,0.29213]
[1735522830407,0.29213,3430.5,3430.2,3.49995]
[1735522830606,4.5088,3431.0,3430.2,3.2078]
[1735522830802,0.29212,3430.6,3430.3,0.29214]
[1735522831001,0.29211,3430.7,3430.3,0.29214]
[1735522831204,0.2921,3430.8,3430.2,3.2078]
[1735522831511,0.2921,3430.8,3430.4,0.29213]
[1735522831803,4.5088,3431.0,3430.8,0.2921]
[1735522832008,4.5088,3431.0,3430.2,3.2078]
[1735522832312,4.80088,3431.0,3430.6,0.29211]
[1735522832812,4.80089,3431.0,3430.5,0.29212]
[1735522833310,3.2078,3431.0,3430.2,3.2078]
[1735522833607,5.33864266,3431.1,3430.7,0.2921]
[1735522833912,5.63072266,3431.1,3430.6,0.29211]
[1735522834114,5.63072266,3431.1,3430.2,3.2078]
[1735522834308,5.33864266,3431.1,3430.6,0.29211]
[1735522834508,0.29209,3431.0,3430.6,0.29211]
[1735522835009,0.29209,3431.0,3430.2,3.2078]
[1735522835010,5.33864266,3431.1,3430.2,3.2078]
[1735522835204,2.5577,3431.1,3430.2,3.2078]
[1735522835405,0.2921,3430.8,3430.4,0.29213]
[1735522835704,1.2161,3430.7,3430.4,0.29213]
[1735522836111,1.2161,3430.7,3430.1,3.2078]
[1735522836312,1.2161,3430.7,3430.6,0.29212]
[1735522838212,1.2161,3430.7,3430.1,3.2078]
[1735522838515,1.50821,3430.7,3430.1,3.2078]
[1735522838809,0.29212,3430.6,3430.1,3.2078]
[1735522839015,0.29212,3430.6,3430.3,0.29214]
[1735522839512,1.2161,3430.7,3430.3,0.29214]
[1735522839702,1.50821,3430.7,3430.3,0.29214]
[1735522839902,0.29212,3430.6,3430.3,0.29214]
[1735522840113,1.50821,3430.7,3430.3,0.29214]
[1735522841213,1.2161,3430.7,3430.1,3.2078]
[1735522841408,1.2161,3430.7,3430.6,0.29212]
[1735522841718,1.2161,3430.7,3430.1,3.2078]
[1735522842212,1.2161,3430.7,3430.5,0.29212]
[1735522842411,1.2161,3430.7,3430.1,3.2078]
[1735522842603,1.2161,3430.7,3430.5,0.29212]
[1735522843612,1.2161,3430.7,3430.1,3.2078]
[1735522843813,1.2161,3430.7,3430.6,0.29212]
[1735522844010,3.2078,3430.9,3430.8,0.2921]
[1735522844216,3.2078,3431.3,3431.2,0.29207]
[1735522844417,3.2078,3431.3,3430.5,3.2078]
[1735522844715,1.50605,3431.4,3430.9,3.2078]
[1735522844912,1.214,3431.4,3431.0,0.29208]
[1735522845111,1.214,3431.4,3431.1,0.29207]
[1735522845412,1.50605,3431.4,3431.1,0.29207]
[1735522845811,3.2078,3431.3,3430.4,3.2078]
[1735522846007,0.29208,3431.1,3430.8,0.2921]
[1735522847810,0.29208,3431.1,3430.4,3.2078]
[1735522848016,3.2078,3431.3,3430.4,3.2078]
[1735522848314,0.29208,3431.0,3430.4,3.2078]
[1735522848615,3.2078,3431.3,3430.7,0.2921]
[1735522849210,3.2078,3431.3,3430.4,3.2078]
[1735522849707,0.29207,3431.1,3430.4,3.2078]
[1735522849912,0.29207,3431.1,3431.0,0.29208]
[1735522850110,3.2078,3431.3,3430.4,3.2078]
[1735522850314,3.2078,3431.3,3431.2,0.29207]
[1735522850908,3.2078,3431.7,3431.6,0.29203]
[1735522851318,1.1332,3431.8,3431.1,0.73019]
[1735522851618,1.1332,3431.8,3431.7,0.29202]
[1735522853823,3.2078,3432.1,3431.4,3.2078]
[1735522854122,1.43748,3432.2,3431.8,0.29201]
[1735522854323,1.1455,3432.2,3432.1,0.29199]
[1735522855120,1.1455,3432.2,3431.4,3.2078]
[1735522855318,1.1455,3432.2,3432.0,0.29199]
[1735522855819,1.1455,3432.2,3432.1,0.29199]
[1735522856127,1.46277,3432.4,3432.2,0.29197]
[1735522856315,1.1708,3432.4,3432.2,0.29197]
[1735522856623,2.27486095,3432.3,3432.2,0.29197]
[1735522857728,2.56683095,3432.3,3432.1,0.29198]
[1735522858028,2.27486095,3432.3,3432.2,0.29198]
[1735522858214,2.27486095,3432.3,3431.5,0.73011]
[1735522858215,2.27486095,3432.3,3432.1,0.29198]
[1735522858818,5.05580361,3432.3,3431.4,3.2078]
[1735522859020,3.2078,3431.8,3430.7,0.22816783]
[1735522859216,3.2078,3431.8,3430.6,3.2078]
[1735522859522,1.29,3431.9,3430.6,3.2078]
[1735522859523,3.2078,3431.4,3430.6,3.2078]
[1735522859725,3.49985,3431.4,3431.2,0.29206]
[1735522859925,3.49985,3431.4,3430.6,3.2078]
[1735522859926,3.2078,3431.4,3430.6,3.43566479]
[1735522860219,3.2078,3431.4,3431.3,0.29206]
[1735522860425,1.51033,3431.7,3431.5,0.29204]
[1735522860426,2.27486095,3431.6,3431.5,0.29204]
[1735522860826,2.27486095,3431.6,3431.0,3.2078]
[1735522861025,2.56690095,3431.6,3431.4,0.29204]
[1735522861227,2.27486095,3431.6,3431.5,0.29204]
[1735522861420,4.90752904,3431.7,3431.5,0.29204]
[1735522861421,3.78519095,3431.7,3431.5,0.29204]
[1735522861622,2.27486095,3431.7,3431.6,0.29203]
[1735522862220,2.27486095,3431.7,3431.6,5.82293746]
[1735522862417,3.39719904,3431.8,3431.7,0.29202]
[1735522862821,2.28795853,3432.2,3432.1,0.29199]
[1735522863027,2.28795853,3432.2,3431.6,44.0078]
[1735522863228,2.28795853,3432.2,3432.1,0.29199]
[1735522863927,2.32310746,3432.4,3431.6,44.0078]
[1735522864430,0.29202,3431.8,3431.6,3.49983]
[1735522864723,0.29201,3431.9,3431.7,0.29202]
[1735522864929,0.29201,3431.9,3431.6,3.2078]
[1735522864930,0.29202,3431.7,3431.6,3.2078]
[1735522865130,0.29202,3431.7,3431.4,0.29205]
[1735522865131,3.49982,3431.7,3431.4,0.29205]
[1735522865930,3.49982,3431.7,3431.5,0.29204]
[1735522866627,3.2078,3431.7,3430.9,3.2078]
[1735522866827,3.49982,3431.7,3431.5,0.29204]
[1735522867030,3.2078,3431.7,3430.9,3.2078]
[1735522867332,2.77920987,3431.6,3430.9,3.2078]
[1735522867532,0.29207,3431.2,3430.9,3.2078]
[1735522867719,3.99110987,3431.6,3430.9,3.2078]
[1735522867720,0.29206,3431.3,3430.9,3.2078]
[1735522867926,0.29208,3431.0,3430.9,3.2078]
[1735522868120,1.2158,3431.4,3430.9,3.2078]
[1735522868322,0.29206,3431.3,3431.1,0.29207]
[1735522868923,2.79785,3431.4,3431.1,0.29207]
[1735522869522,2.5058,3431.4,3430.9,3.2078]
[1735522869722,0.29208,3431.1,3430.9,3.2078]
[1735522870133,2.5058,3431.4,3430.9,3.2078]
[1735522870326,0.29207,3431.2,3430.9,3.2078]
[1735522870634,2.5058,3431.4,3430.9,3.2078]
[1735522870834,0.29208,3431.0,3430.9,3.2078]
[1735522871332,3.2078,3431.1,3430.3,3.2078]
[1735522871524,0.29211,3431.0,3430.6,0.29214]
[1735522871724,0.29211,3431.0,3430.3,3.2078]
[1735522871919,0.29211,3431.0,3430.5,0.29214]
[1735522872127,3.2078,3431.1,3430.3,3.2078]
[1735522872428,3.2078,3431.1,3430.0,0.29219]
[1735522872429,0.29216,3430.5,3430.0,0.29219]
[1735522872625,3.2078,3430.6,3429.6,4.41108467]
[1735522872626,3.2078,3430.1,3429.6,4.41108467]
[1735522872926,0.29221,3429.9,3429.6,4.41108467]
[1735522873632,0.29221,3429.9,3429.5,3.2078]
[1735522874033,0.29221,3429.8,3429.5,3.2078]
[1735522874336,1.29,3429.8,3429.0,7.61888467]
[1735522874531,0.29223,3429.6,3429.2,0.29226]
[1735522874731,1.2367,3429.5,3429.0,7.61888467]
[1735522874933,1.2367,3429.5,3429.1,0.29226]
[1735522875132,1.2367,3429.5,3429.0,3.2078]
[1735522875432,4.4445,3429.5,3429.0,3.2078]
[1735522875735,0.29225,3429.3,3428.8,0.29229]
[1735522876035,0.29226,3429.2,3428.8,0.29229]
[1735522876233,0.29226,3429.3,3428.8,0.29229]
[1735522876433,4.4445,3429.5,3428.8,0.29229]
[1735522876734,0.29225,3429.3,3428.9,0.29228]
[1735522876934,0.29228,3429.0,3428.6,0.29231]
[1735522877233,0.29232,3428.5,3428.4,3.2078]
[1735522877431,0.29232,3428.5,3428.1,0.29235]
[1735522877633,0.29232,3428.5,3427.9,7.61888467]
[1735522877634,0.29233,3428.4,3428.0,0.29236]
[1735522878226,1.44351,3428.6,3428.0,0.29236]
[1735522878431,1.44351,3428.6,3428.0,0.29235]
[1735522878432,0.29232,3428.5,3428.0,0.29235]
[1735522878733,0.29234,3428.3,3427.9,0.29236]
[1735522878933,1.1512,3428.6,3427.5,3.2078]
[1735522879130,0.29235,3428.2,3427.5,3.2078]
[1735522879331,0.29234,3428.2,3427.7,0.29238]
[1735522879526,3.2078,3428.3,3427.7,0.29238]
[1735522879728,3.2078,3428.3,3427.5,3.2078]
[1735522879931,3.2078,3428.3,3427.7,0.29238]
[1735522880136,0.29236,3428.1,3427.7,0.29238]
[1735522880635,0.29237,3427.9,3427.5,3.5002]
[1735522880834,3.2078,3428.3,3427.5,3.2078]
[1735522881143,0.29236,3428.0,3427.6,0.29239]
[1735522881430,3.2078,3427.8,3427.1,3.2078]
[1735522881633,0.29241,3427.5,3427.1,3.50024]
[1735522881829,3.2078,3427.4,3426.6,3.2078]
[1735522882830,0.29242,3427.3,3426.9,0.29245]
[1735522883036,1.29,3427.3,3426.6,3.2078]
[1735522883237,0.29245,3427.0,3426.6,3.2078]
[1735522883632,0.29245,3427.0,3426.6,3.50028]
[1735522883831,1.1585,3427.1,3426.6,3.2078]
[1735522884033,0.29245,3427.0,3426.6,3.2078]
[1735522884234,0.29249,3426.6,3426.1,0.29252]
[1735522884430,6.27948987,3426.8,3426.3,0.2925]
[1735522884630,0.29248,3426.7,3426.0,3.2078]
[1735522884839,0.29249,3426.6,3426.1,0.29252]
[1735522885033,1.1807,3426.7,3426.3,0.29251]
[1735522885233,1.1807,3426.7,3426.1,0.29252]
[1735522885434,1.1807,3426.7,3426.0,3.2078]
[1735522885633,1.1585,3427.1,3427.0,0.29245]
[1735522885832,1.1585,3427.1,3426.6,3.2078]
[1735522885833,3.2078,3427.2,3426.9,0.29246]
[1735522886027,3.2078,3427.2,3426.6,3.2078]
[1735522886241,5.98700987,3427.2,3426.8,0.29247]
[1735522886429,5.98700987,3427.2,3426.2,3.2078]
[1735522886629,2.77920987,3426.8,3426.2,3.2078]
[1735522887034,2.77920987,3426.8,3426.4,0.2925]
[1735522887235,6.27947987,3426.8,3426.2,0.29251]
[1735522887535,2.419,3426.7,3425.7,3.2078]
[1735522887738,2.419,3426.7,3426.1,0.29252]
[1735522887937,0.29251,3426.4,3425.9,0.29255]
[1735522888137,0.29251,3426.4,3425.7,3.2078]
[1735522888337,2.77920987,3426.4,3425.7,3.2078]
[1735522888535,3.2078,3425.8,3425.4,0.29259]
[1735522888840,3.2078,3425.8,3425.1,0.29261]
[1735522888841,1.50596,3425.7,3425.1,0.29261]
[1735522889034,2.68896,3425.7,3425.0,3.2078]
[1735522889229,2.3964,3425.7,3425.0,3.50042]
[1735522889440,3.07178987,3425.6,3425.0,3.50042]
[1735522889743,3.07178987,3425.6,3425.0,3.2078]
[1735522889744,1.58358,3425.5,3425.0,3.2078]
[1735522890039,1.291,3425.5,3425.0,3.2078]
[1735522890239,2.77920987,3425.2,3425.0,3.2078]
[1735522890447,3.2078,3425.1,3424.7,0.29265]
[1735522890638,2.77920987,3424.8,3424.3,3.2078]
[1735522890947,1.291,3424.7,3424.3,3.50048]
[1735522891236,5.6977,3424.7,3424.2,0.29268]
[1735522891441,5.6977,3424.7,3423.7,3.2078]
[1735522891442,5.6977,3424.7,3424.4,0.29267]
[1735522891643,3.2078,3425.1,3424.9,0.29263]
[1735522891940,3.2078,3425.1,3423.9,3.2078]
[1735522892128,3.2078,3424.7,3424.5,0.29266]
[1735522892334,3.2078,3424.7,3424.6,0.29266]
[1735522894138,3.2078,3424.7,3424.3,0.29268]
[1735522894336,3.2078,3424.7,3423.9,3.2078]
[1735522894537,3.2078,3424.7,3423.9,3.50051]
[1735522894538,2.77920987,3424.4,3423.9,3.50051]
[1735522894739,1.291,3424.3,3423.6,3.2078]
[1735522894934,1.291,3424.3,3424.0,0.2927]
[1735522895141,1.291,3424.3,3423.6,3.2078]
[1735522895445,1.291,3424.3,3424.2,0.29269]
[1735522895741,1.291,3424.3,3423.9,0.29271]
[1735522895937,4.4988,3424.3,3423.9,0.29271]
[1735522896235,4.4988,3424.3,3423.6,3.2078]
[1735522896236,4.4988,3424.3,3423.8,0.29272]
[1735522896437,4.4988,3424.3,3423.7,0.29273]
[1735522896642,1.1703,3424.2,3423.8,0.29272]
[1735522896835,1.1703,3424.2,3422.9,1.93789]
[1735522896836,1.1703,3424.2,3423.9,0.29271]
[1735522897142,2.77920987,3424.0,3423.6,3.2078]
[1735522897441,2.77920987,3424.0,3422.1,5.09084477]
[1735522897442,3.2078,3423.9,3423.2,3.2078]
[1735522897938,3.2078,3423.9,3423.6,0.29274]
[1735522898836,3.2078,3423.9,3423.3,0.29277]
[1735522899040,3.2078,3423.9,3423.2,3.2078]
[1735522899041,3.2078,3423.9,3423.7,0.29273]
[1735522899441,3.2078,3423.9,3423.3,40.8]
[1735522899641,3.2078,3424.3,3424.1,0.2927]
[1735522899848,3.2078,3424.3,3424.2,0.29269]
[1735522900346,3.2078,3424.3,3423.7,40.8]
[1735522900845,2.77920987,3424.0,3423.6,0.29274]
[1735522901047,2.77920987,3424.0,3423.2,3.2078]
[1735522901241,1.1455,3424.2,3423.2,3.2078]
[1735522901446,1.1455,3424.2,3424.1,0.2927]
[1735522902345,5.18380987,3424.4,3424.3,0.29268]
[1735522903050,5.18380987,3424.4,3424.2,0.29269]
[1735522903453,5.18380987,3424.4,3424.3,0.29268]
[1735522903949,1.1126,3424.4,3424.3,0.29268]
[1735522904241,3.2078,3424.7,3424.6,0.29266]
[1735522904644,3.2078,3424.7,3424.1,3.2078]
[1735522904951,3.2078,3424.7,3424.3,0.29268]
[1735522905144,3.2078,3424.7,3424.1,3.2078]
[1735522905351,3.2078,3424.7,3424.6,0.29266]
[1735522905551,3.2078,3424.7,3424.1,3.2078]
[1735522905552,3.50045,3424.7,3424.2,0.29268]
[1735522905744,3.2078,3424.7,3424.1,3.2078]
[1735522906049,3.2078,3424.7,3424.5,0.29266]
[1735522906250,3.2078,3424.7,3424.6,0.29266]
[1735522906546,3.2078,3425.1,3425.0,0.29262]
[1735522906741,1.292,3425.4,3425.3,0.2926]
[1735522907645,1.292,3425.4,3424.6,4.3147]
[1735522907845,1.292,3425.4,3424.7,40.8]
[1735522908047,1.292,3425.4,3425.2,0.2926]
[1735522908249,1.292,3425.4,3425.3,0.2926]
[1735522908451,1.292,3425.4,3425.2,0.2926]
[1735522908848,1.292,3425.4,3424.6,4.3147]
[1735522909355,1.292,3425.4,3425.3,0.2926]
[1735522909855,3.2078,3425.7,3425.1,3.2078]
[1735522910053,3.2078,3425.7,3425.2,0.29261]
[1735522910249,3.2078,3425.7,3425.6,0.29257]
[1735522911152,0.23168042,3426.5,3424.6,1.1069]
[1735522911153,3.2078,3426.1,3426.0,0.29254]
[1735522911361,3.2078,3426.7,3426.5,0.29249]
[1735522911550,3.50029,3426.7,3426.2,0.29251]
[1735522911856,3.50029,3426.7,3426.2,0.29252]
[1735522912052,0.29249,3426.6,3426.1,0.29253]
[1735522912258,3.2078,3426.7,3425.2,3.2078]
[1735522912259,3.2078,3426.3,3425.2,3.2078]
[1735522912459,3.2078,3425.9,3425.2,3.2078]
[1735522912755,0.29256,3425.8,3425.4,0.29258]
[1735522913347,3.2078,3425.9,3425.2,3.2078]
[1735522913748,3.50035,3425.9,3425.5,0.29258]
[1735522914557,3.2078,3425.9,3425.3,0.2926]
[1735522914760,3.2078,3425.9,3425.2,3.2078]
[1735522914958,3.2078,3425.9,3425.7,0.29256]
[1735522915461,3.2078,3425.9,3425.8,0.29255]
[1735522916360,3.2078,3425.9,3425.7,0.29256]
[1735522917053,3.2078,3425.9,3425.2,3.2078]
[1735522917253,1.1994,3426.2,3425.6,3.2078]
[1735522917558,1.1994,3426.2,3426.0,0.29254]
[1735522917757,1.1994,3426.2,3425.7,0.29256]
[1735522918366,1.1994,3426.2,3425.2,3.2078]
[1735522918367,0.2926,3425.4,3425.2,3.2078]
[1735522918968,1.291,3425.5,3425.2,3.2078]
[1735522919170,0.2926,3425.3,3425.2,3.2078]
[1735522919363,1.291,3425.5,3425.2,3.2078]
[1735522919570,1.291,3425.5,3425.2,0.2926]
[1735522919968,0.29259,3425.4,3424.9,0.29262]
[1735522920569,1.291,3425.5,3424.6,3.2078]
[1735522920766,1.58358,3425.5,3425.2,0.29261]
[1735522921165,0.20739,3425.0,3424.6,3.2078]
[1735522921863,0.20739,3425.0,3424.9,0.29263]
[1735522923166,0.20739,3425.0,3424.6,3.2078]
[1735522923167,0.50002,3425.0,3424.8,0.29264]
[1735522923468,0.20739,3425.0,3424.8,0.29264]
[1735522923870,0.20739,3425.0,3424.6,3.2078]
[1735522924085,0.29263,3424.9,3424.7,0.29265]
[1735522924286,0.20739,3425.0,3424.7,0.29264]
[1735522924784,0.50002,3425.0,3424.7,0.29265]
[1735522924974,0.50002,3425.0,3424.6,3.2078]
[1735522925166,0.20739,3425.0,3424.9,0.29263]
[1735522926075,0.20739,3425.0,3424.8,0.29263]
[1735522926974,0.20739,3425.0,3424.9,0.29263]
[1735522928273,2.54022785,3425.0,3424.6,3.2078]
[1735522928474,3.2078,3424.7,3423.9,4.3217]
[1735522928775,3.2078,3424.7,3424.1,0.29269]
[1735522928776,2.33283785,3424.4,3424.1,0.29269]
[1735522929176,2.62551785,3424.4,3424.1,0.29269]
[1735522929771,0.29269,3424.3,3424.0,0.29271]
[1735522930071,2.33283785,3424.4,3423.9,3.2078]
[1735522930271,0.29271,3424.0,3423.5,1.1731]
[1735522930474,0.29274,3423.7,3423.3,0.29276]
[1735522930672,0.29274,3423.7,3423.4,0.29276]
[1735522930878,5.83336785,3423.8,3423.5,0.29275]
[1735522931081,5.54063785,3423.8,3423.5,0.29275]
[1735522931373,5.54063785,3423.8,3423.3,0.29276]
[1735522931374,0.29275,3423.6,3423.3,0.29276]
[1735522931579,0.29275,3423.6,3423.0,3.2078]
[1735522931580,2.33283785,3423.5,3423.0,3.2078]
[1735522931782,2.33283785,3423.5,3423.3,0.29276]
[1735522932180,2.62558785,3423.5,3423.3,0.29276]
[1735522932487,2.62558785,3423.5,3423.2,0.29277]
[1735522932974,2.33283785,3423.5,3423.0,3.50059]
[1735522933285,2.33283785,3423.1,3422.4,3.2078]
[1735522933478,2.62565785,3422.7,3422.4,3.50064]
[1735522933671,0.29283,3422.6,3422.3,4.70393467]
[1735522933878,0.29283,3422.6,3422.3,0.29285]
[1735522934078,2.62565785,3422.7,3422.3,0.29285]
[1735522934279,6.29504992,3422.8,3422.4,0.29284]
[1735522934574,6.00222992,3422.8,3422.3,0.29285]
[1735522934784,6.00222992,3422.8,3422.5,0.29283]
[1735522935180,6.00222992,3422.8,3422.2,4.41108467]
[1735522935379,3.6345,3423.0,3422.2,4.41108467]
[1735522935380,2.79442992,3422.3,3422.2,4.41108467]
[1735522935585,2.79442992,3422.3,3421.6,3.2078]
[1735522935886,0.29288,3422.0,3421.6,3.2078]
[1735522936184,3.2078,3421.9,3421.4,4.41108467]
[1735522936780,3.2078,3421.9,3421.4,4.70401467]
[1735522936984,3.2078,3421.9,3421.4,4.41108467]
[1735522937185,3.50069,3421.9,3421.4,4.70400467]
[1735522937391,2.79442992,3421.5,3421.4,4.41108467]
[1735522937683,0.29297,3421.0,3420.5,3.2078]
[1735522937883,2.79442992,3420.9,3420.5,3.2078]
[1735522938189,2.79442992,3420.9,3420.3,0.29302]
[1735522938387,0.29299,3420.8,3420.2,1.38420506]
[1735522938593,1.1861,3420.8,3420.2,1.38420506]
[1735522938790,1.47906,3420.8,3420.2,1.38420506]
[1735522938980,0.29297,3420.7,3420.2,1.38420506]
[1735522939383,1.1861,3420.8,3420.2,1.38420506]
[1735522939587,1.1861,3420.8,3420.1,3.2078]
[1735522939790,1.1861,3420.8,3420.4,0.29299]
[1735522940289,1.1861,3420.8,3420.1,3.2078]
[1735522940482,2.79442992,3420.9,3420.7,0.29296]
[1735522940686,2.79442992,3420.9,3420.6,3.2078]
[1735522940985,2.79442992,3421.3,3420.6,3.2078]
[1735522941187,1.291,3421.1,3420.7,0.29296]
[1735522941390,1.291,3421.1,3420.1,3.2078]
[1735522941585,2.79442992,3421.3,3420.1,3.2078]
[1735522941586,2.79442992,3421.3,3420.6,3.2078]
[1735522941789,2.79442992,3421.3,3420.9,0.29294]
[1735522941983,2.79442992,3421.3,3420.7,1.45446]
[1735522942284,3.2078,3420.8,3420.0,3.2078]
[1735522942783,2.79442992,3420.5,3420.0,3.2078]
[1735522943384,2.79442992,3420.1,3419.6,3.2078]
[1735522943589,2.79442992,3420.1,3419.7,0.29304]
[1735522943890,3.2078,3420.0,3419.5,0.29306]
[1735522944085,3.50083,3420.0,3419.5,0.29306]
[1735522944279,3.50083,3420.0,3419.1,3.2078]
[1735522944280,3.2078,3420.0,3419.1,3.2078]
[1735522944488,2.79442992,3419.7,3419.1,3.2078]
[1735522944790,1.292,3419.8,3419.5,0.29306]
[1735522945089,1.1081,3419.9,3419.1,3.2078]
[1735522945483,1.1081,3419.9,3419.2,0.29309]
[1735522945484,0.29305,3419.8,3419.2,0.29309]
[1735522945683,0.29305,3419.8,3419.1,3.2078]
[1735522945988,0.29305,3419.8,3419.3,0.29308]
[1735522946200,2.79442992,3419.7,3419.1,3.2078]
[1735522946392,3.2078,3419.6,3419.2,0.29308]
[1735522946891,3.2078,3419.6,3419.5,0.29307]
[1735522947190,3.2078,3419.6,3419.2,0.29309]
[1735522947493,3.2078,3419.6,3419.1,3.2078]
[1735522947791,3.2078,3419.6,3419.3,0.29308]
[1735522947995,1.1081,3419.9,3419.1,3.2078]
[1735522948179,1.1081,3419.9,3419.7,0.29304]
[1735522948379,1.1081,3419.9,3419.1,3.2078]
[1735522948584,1.1081,3419.9,3419.6,0.29305]
[1735522948785,3.2078,3420.2,3419.5,3.2078]
[1735522949082,3.2078,3420.2,3420.1,0.29301]
[1735522949288,4.08642992,3420.5,3420.2,0.293]
[1735522949489,4.08642992,3420.5,3420.0,3.2078]
[1735522949689,4.08642992,3420.5,3420.3,0.29299]
[1735522949885,3.2078,3420.6,3420.0,3.2078]
[1735522950289,3.2078,3420.6,3420.3,0.29299]
[1735522950891,2.69566,3420.7,3420.2,0.293]
[1735522951393,2.4027,3420.7,3420.0,3.2078]
[1735522951688,2.4027,3420.7,3420.1,0.29301]
[1735522951890,2.4027,3420.7,3420.0,3.2078]
[1735522952084,2.4027,3420.7,3420.5,0.29297]